{"text_format":"1","workbook":"xlsx","n_sheets":5,"sheets":["Erwärmung","Tabelle 101 (DIN EN 61439-2)","Pab_Gehäuse","Pv_Einbaugeräte","Legende"],"not_rendered":{"charts":0,"images":4,"macros":0,"external_links":2,"defined_names":141,"comments":0,"pivot_tables":0},"unopened":[],"bounds":{"document_bytes":16777216,"sheet_cells":100000,"rows_first":2000,"rows_last":500,"rows_between":2000,"halvings":0,"cell_chars":16384,"cell_head_chars":4096},"cells_cut":0,"cells_raw":0,"read":"whole","date_system":"1900"}

{"sheet":"Erwärmung","index":0,"n_rows":77,"n_cols":12,"rows_kept":77,"cut":false,"hidden":false,"merged":[[35,7,35,8],[16,0,23,0],[37,7,37,8],[27,7,27,8]]}
["Hersteller:"]
[null,"Mustermann"]
[null,"in Musterhausen"]
[]
[]
[]
["Bauartnachweis der zulässigen Erwärmung nach DIN EN 61 439-1 Abschnitt 10.10"]
["Kunde:","Theo Muster",null,null,null,"Kom. Nr.:"]
[null,null,null,null,null,"Pos. Nr.: 01.01.01."]
[]
["Max. Schrankinnentemperatur",null,null,"55°C"]
["Max. Umgebungstemperatur",null,null,"35°C"]
["Temperaturdifferenz zur Wärmeableitung",null,null,"20K",null,"= bitte diese Punkte manuel ausfüllen."]
["1. installierte Verlustleistung der Einbaugeräte",null,null,null,null,null,null,null,null,null,"3 Phasig"]
[null,"Pos.","Anzahl","Hersteller","Typ","Beschreibung","In / A","Derating","InC / A","Tab 101","Pv / Watt","Σ Pv / Watt"]
["Einspeisung","E 1",1,"ABN","250A","Leistungsschalter",250,0.8,{"$f":"G16*H16","v":200},1,56.25,{"$f":"IFERROR((K16*(I16/G16)^2)*C16*H16*J16,\"0\")","v":28.800000000000008}]
["Abgänge","A 1",3,"ABN","NH1","Sicherungsschaltleiste",250,0.8,{"$f":"G17*H17","v":200},0.9,54,{"$f":"IFERROR((K17*(I17/G17)^2)*C17*H17*J17,\"0\")","v":74.649600000000035}]
[null,"A 2",12,"Doepke","B16A","Leitungsschutzschalter 3-pol.",16,0.8,12.8,0.6,6.3,23.224320000000009]
[null,"A 3",24,"Doepke","B16A","Leitungsschutzschalter 1-pol.",16,0.8,12.8,0.6,2.1,15.482880000000003]
[null,"A 4",null,null,null,null,null,null,0,null,null,"0"]
[null,"A 5",null,null,null,null,"",null,0,null,null,"0"]
[null,"A 6",null,null,null,null,"",null,0,null,null,"0"]
[null,"A 7",null,null,null,null,"",null,0,null,null,"0"]
[null,"A 8",null,null,null,null,null,null,0,null,null,"0"]
[null,null,null,null,null,"Summe installierte Verlustleistung der Einbaugeräte (W)",null,null,null,null,null,{"$f":"SUM(L16:L24)","v":142.15680000000006}]
[]
["2. installierte Verlustleistung der Sammelschienen - 3 Phasig"]
["Pos.","Länge","Beschreibung",null,null,null,null,"Material",null,null,"Pv/ Watt\npro m","Σ Pv/ Watt"]
[1,0.75,"Sammelschiene 250A",null,null,null,null,"CU",null,null,60.16,{"$f":"B29*K29","v":45.12}]
[2,null,"Sammelschiene 400A",null,null,null,null,"CU",null,null,null,{"$f":"B30*K30","v":0}]
[3,null,"Sammelschiene 630A",null,null,null,null,"CU",null,null,null,0]
[null,null,null,null,null,"Summe installierte Verlustleistung der Sammelschienen (W)",null,null,null,null,null,{"$f":"SUM(L29:L31)","v":45.12}]
[]
["3. abstrahlbare Verlustleistung der Gehäuse / Schränke"]
["ursprünglicher Hersteller:",null,null,null,null,null,"System:"]
["Pos.","Anzahl","Beschreibung",null,null,null,null,"Abmessungen",null,null,"Pab/ Watt","Σ Pab/ Watt"]
[1,1,"SF312 Systemgehäuse, IP43, SK 2, Einzelgehäuse",null,null,null,null,"800x1980x210",null,null,250,{"$f":"K37*B37","v":250}]
[2,null,null,null,null,null,null,null,null,null,null,0]
[3,null,null,null,null,null,null,null,null,null,null,0]
[4,null,null,null,null,null,null,null,null,null,null,0]
[5,null,null,null,null,null,null,null,null,null,null,0]
[6,null,null,null,null,null,null,null,null,null,null,0]
[null,null,null,null,null,"Summe abstrahlbare Verlustleistung der Gehäuse / Schränke (W)",null,null,null,null,null,{"$f":"SUM(L37:L42)","v":250}]
[]
["4. Berechnung"]
[]
["Pos."]
["1.","Summe installierte Verlustleistung der Geräte",null,null,null,null,null,{"$f":"L25","v":142.15680000000006}]
["2.","Summe installierte Verlustleistung der Sammelschienen",null,null,null,null,null,{"$f":"L32","v":45.12}]
[null,"Anteilige Verdrahtung von Pos. 1",null,null,null,null,null,{"$f":"(H48+H49)*0.2","v":37.455360000000013}]
[null,15,"% Reserve für zusätzlicher Geräte",null,null,null,null,{"$f":"SUM(H48:H50)*B51/100","v":33.709824000000012}]
[null,null,null,null,null,"Zwischensumme",null,{"$f":"SUM(H48:H51)","v":258.4419840000001},"Watt"]
["3.","Summe abstrahlbare Verlustleistung der Gehäuse / Schränke",null,null,null,null,null,{"$f":"L43","v":250}]
[null,"Differenz zwischen abstrahlbarer und installierter Verlustleistung",null,null,null,null,null,{"$f":"H53-H52","v":-8.4419840000001045},"Watt"]
[]
["Bei negativer Differenz ist durch Belüftung oder durch größere Gehäuse die abstrahlbare Verlustleistung zu vergrößern."]
["Eine weitere Maßnahme kann die Verringerung des RDF sein."]
[null,null,null,null,null,null,null,"abstrahlbare Verlustleistung"]
["Berechnung reduzierter RDF: ",null,null,null,null,"RDF =",null,"installierte Verlustleistung"]
[]
["Hinweise:",null,null,null,null,"ABN Festlegung:"]
[null,null,null,null,null,null,"errechneter Hersteller-RDF =",{"$f":"SQRT(H53/H52)","v":0.98353194689905343}]
[]
[null,"Bemessungsstrom",null,null,null,"Die Anlage ist mit einem RDF von 0,9 zu betreiben."]
[]
[null,"DERATING: Nach Angaben des Herstellers, jedoch mindestens 0,8 nach DIN EN 61 439 Teil 1."]
[]
[null,"Der Strom InC definiert für die Einspeisung den Wert InA ."]
[]
[null,"Angaben für Stahlblechverteiler ebenso wie für Isolierstoffverteiler in Kastenbauform möglich."]
[]
[null,"Abstrahlbare Verlustleistung laut ursprünglichem Hersteller."]
[]
[null,"Auswahl aus Tabelle 101 DIN EN 61439-2"]
[]
[]
[null,"ABN GmbH, Daimlerstrasse 10-12, D-74196 Neuenstadt am Kocher, www.abn-elektro.de"]

{"sheet":"Tabelle 101 (DIN EN 61439-2)","index":1,"n_rows":16,"n_cols":3,"rows_kept":16,"cut":false,"hidden":false,"merged":[[15,1,15,2]]}
["Tabelle Stromkreis - Belastungsfaktor"]
[]
[null,"Anzahl Stromkreise","angenommener\nBelastungsfaktor"]
[null,1,1]
[null,2,0.9]
[null,3,0.9]
[null,4,0.8]
[null,5,0.8]
[null,6,0.7]
[null,7,0.7]
[null,8,0.7]
[null,9,0.7]
[null,10,0.60000000000000009]
[null,">10",0.60000000000000009]
[]
["Erläuterung:","Durch gegenseitige Erwärmung der Sicherungaautomaten\nmuss eine Leistungsreduzierung in Form\neines Belastungsfaktors bestimmt werden."]

{"sheet":"Pab_Gehäuse","index":2,"n_rows":455,"n_cols":7,"rows_kept":455,"cut":false,"hidden":false,"merged":[]}
["Tabelle Gehäuse-System:"]
[]
["Schrankart","Hersteller","Schutzart","Typ","Artikelnummer","abstrahlbare\nVerlustleistung Pab / Pzul.\nin Watt\n\n(bei dT = 20K)\nWandaufbau","Bemessungsstrom\nIn / A"]
[]
["Kleinverteiler / Installationsverteiler"]
["Unterputz-Verteiler, 90mm, SK II","ABN","IP30","AP12UP",null,10,63]
[null,null,null,"AP24UP",null,11.5,63]
[null,null,null,"AP36UP",null,14.5,63]
[null,null,null,"AP48UP",null,16.5,63]
[]
["Hohlwand-Verteiler, 90mm, SK II","ABN","IP30","AP12HW",null,10,63]
[null,null,null,"AP24HW",null,11.5,63]
[null,null,null,"AP36HW",null,14.5,63]
[null,null,null,"AP48HW",null,16.5,63]
[]
["Kleinverteiler / Multimediaverteiler"]
["Unterputz-/Hohlwand-Verteiler, 90mm, SK II","ABN","IP30","AP36TK",null,14.5,63]
[null,null,null,"AP48TK",null,16.5,63]
[]
["Kleinverteiler / Installationsverteiler"]
["Aufputz-Verteiler, 106mm, SK II","ABN","IP30","A12A",null,12.5,63]
[null,null,null,"A24A",null,15,63]
[null,null,null,"A36A",null,17,63]
[null,null,null,"A48A",null,20.5,63]
[]
["Installations-Flachverteiler"]
["UP/HW-Verteiler, 110mm tief in kompletter Lieferform, SK II"]
["Baureihe UK.. als Bedarfsschrank, komplett","ABN","IP30","UK13",null,31,250]
[null,null,null,"UK23",null,50,250]
[null,null,null,"UK33",null,87,250]
[]
[null,null,null,"UK14",null,36,250]
[null,null,null,"UK24",null,60,250]
[null,null,null,"UK34",null,80,250]
[]
[null,null,null,"UK15",null,43,250]
[null,null,null,"UK25",null,69,250]
[null,null,null,"UK35",null,93,250]
[null,null,null,"UK45",null,120,250]
[]
[null,null,null,"UK16",null,50,250]
[null,null,null,"UK26",null,80,250]
[null,null,null,"UK36",null,110,250]
[null,null,null,"UK46",null,137,250]
[]
[null,null,null,"UK17",null,57,250]
[null,null,null,"UK27",null,89,250]
[null,null,null,"UK37",null,125,250]
[]
["UP/HW-Verteiler, 110mm tief in modularer Lieferform, SK II"]
["Baureihe UL.. in modularer Lieferform - Leergehäuse","ABN","IP30","UL13X",null,31,125]
[null,null,null,"UL23X",null,50,125]
[null,null,null,"UL33X",null,87,125]
[]
[null,null,null,"UL14X",null,36,125]
[null,null,null,"UL24X",null,60,125]
[null,null,null,"UL34X",null,80,125]
[]
[null,null,null,"UL15X",null,43,125]
[null,null,null,"UL25X",null,69,125]
[null,null,null,"UL35X",null,93,125]
[null,null,null,"UL45X",null,120,125]
[]
[null,null,null,"UL16X",null,50,125]
[null,null,null,"UL26X",null,80,125]
[null,null,null,"UL36X",null,110,125]
[null,null,null,"UL46X",null,137,125]
[]
[null,null,null,"UL17X",null,57,125]
[null,null,null,"UL27X",null,89,125]
[null,null,null,"UL37X",null,125,125]
[]
["AP-Verteiler, 160mm tief in kompletter Lieferform, SK II"]
["Baureihe MK.. mit Komplettfeld für Reiheneinbaugeräte","ABN","IP30","MK13",null,31,250]
[null,null,null,"MK23",null,48,250]
[null,null,null,"MK33",null,71,250]
[null,null,null,"MK43",null,86,250]
[]
[null,null,null,"MK14",null,36,250]
[null,null,null,"MK24",null,59,250]
[null,null,null,"MK34",null,80,250]
[null,null,null,"MK44",null,103,250]
[]
[null,null,null,"MK15",null,44,250]
[null,null,null,"MK25",null,68,250]
[null,null,null,"MK35",null,91,250]
[null,null,null,"MK45",null,113,250]
[]
[null,null,null,"MK16",null,51,250]
[null,null,null,"MK26",null,77,250]
[null,null,null,"MK36",null,100,250]
[null,null,null,"MK46",null,136,250]
[]
[null,null,null,"MK17",null,57,250]
[null,null,null,"MK27",null,83,250]
[null,null,null,"MK37",null,109,250]
[null,null,null,"MK47",null,159,250]
[]
["Baureihe MK..RK mit Komplettfeld für Reihenklemmen und","ABN","IP30","MK14RK",null,36,250]
["Reiheneinbaugeräte, SK II",null,null,"MK24RK",null,59,250]
[]
[null,null,null,"MK15RK",null,44,250]
[null,null,null,"MK25RK",null,68,250]
[null,null,null,"MK35RK",null,91,250]
[null,null,null,"MK45RK",null,113,250]
[]
[null,null,null,"MK16RK",null,51,250]
[null,null,null,"MK26RK",null,77,250]
[null,null,null,"MK36RK",null,100,250]
[null,null,null,"MK46RK",null,136,250]
[]
[null,null,null,"MK17RK",null,57,250]
[null,null,null,"MK27RK",null,83,250]
[null,null,null,"MK37RK",null,109,250]
[null,null,null,"MK47RK",null,159,250]
[]
["AP-Verteiler, 160mm tief in modularer Lieferform, SK II","ABN","IP30","ML13",null,31,250]
["sprich: Leergehäuse",null,null,"ML23",null,48,250]
[null,null,null,"ML33",null,71,250]
[null,null,null,"ML43",null,86,250]
[]
[null,null,null,"ML14",null,36,250]
[null,null,null,"ML24",null,59,250]
[null,null,null,"ML34",null,80,250]
[null,null,null,"ML44",null,103,250]
[]
[null,null,null,"ML15",null,44,250]
[null,null,null,"ML25",null,68,250]
[null,null,null,"ML35",null,91,250]
[null,null,null,"ML45",null,113,250]
[]
[null,null,null,"ML16",null,51,250]
[null,null,null,"ML26",null,67,250]
[null,null,null,"ML36",null,100,250]
[null,null,null,"ML46",null,136,250]
[]
[null,null,null,"ML17",null,57,250]
[null,null,null,"ML27",null,83,250]
[null,null,null,"ML37",null,109,250]
[null,null,null,"ML47",null,159,250]
[]
["AP-Verteiler, 160mm tief in modularer Lieferform mit Sichtüre, SK II","ABN","IP30","ML14TS",null,36,250]
["sprich: Leergehäuse",null,null,"ML24TS",null,59,250]
[]
[null,null,null,"ML15TS",null,44,250]
[null,null,null,"ML25TS",null,68,250]
[]
[null,null,null,"ML16TS",null,51,250]
[null,null,null,"ML26TS",null,67,250]
[]
[null,null,null,"ML17TS",null,57,250]
[null,null,null,"ML27TS",null,83,250]
[]
["Systemgehäuse"]
["Wandgehäuse Baureihe SV, 210mm tief, SK I","ABN","IP43","SV13",null,31,400]
[null,null,null,"SV23",null,49,400]
[null,null,null,"SV33",null,87,400]
[null,null,null,"SV43",null,91,400]
[null,null,null,"SV53",null,96,400]
[]
[null,null,null,"SV14",null,38,400]
[null,null,null,"SV24",null,61,400]
[null,null,null,"SV34",null,97,400]
[null,null,null,"SV44",null,112,400]
[null,null,null,"SV54",null,132,400]
[]
[null,null,null,"SV15",null,45,400]
[null,null,null,"SV25",null,73,400]
[null,null,null,"SV35",null,107,400]
[null,null,null,"SV45",null,133,400]
[null,null,null,"SV55",null,168,400]
[]
[null,null,null,"SV16",null,52,400]
[null,null,null,"SV26",null,85,400]
[null,null,null,"SV36",null,116,400]
[null,null,null,"SV46",null,154,400]
[null,null,null,"SV56",null,204,400]
[]
[null,null,null,"SV17",null,59,400]
[null,null,null,"SV27",null,97,400]
[null,null,null,"SV37",null,130,400]
[null,null,null,"SV47",null,178,400]
[null,null,null,"SV57",null,237,400]
[]
[null,null,null,"SV18",null,66,400]
[null,null,null,"SV28",null,107,400]
[null,null,null,"SV38",null,147,400]
[null,null,null,"SV48",null,206,400]
[null,null,null,"SV58",null,272,400]
[]
[null,null,null,"SV19",null,73,400]
[null,null,null,"SV29",null,114,400]
[null,null,null,"SV39",null,199,400]
[null,null,null,"SV49",null,234,400]
[null,null,null,"SV59",null,308,400]
[]
["Wandgehäuse Baureihe S, 210mm tief, SK II","ABN","IP43","S13",null,31,400]
[null,null,null,"S23",null,49,400]
[null,null,null,"S33",null,87,400]
[null,null,null,"S43",null,91,400]
[null,null,null,"S53",null,96,400]
[]
[null,null,null,"S14",null,38,400]
[null,null,null,"S24",null,61,400]
[null,null,null,"S34",null,97,400]
[null,null,null,"S44",null,112,400]
[null,null,null,"S54",null,132,400]
[]
[null,null,null,"S15",null,45,400]
[null,null,null,"S25",null,73,400]
[null,null,null,"S35",null,107,400]
[null,null,null,"S45",null,133,400]
[null,null,null,"S55",null,168,400]
[]
[null,null,null,"S16",null,52,400]
[null,null,null,"S26",null,85,400]
[null,null,null,"S36",null,116,400]
[null,null,null,"S46",null,154,400]
[null,null,null,"S56",null,204,400]
[]
[null,null,null,"S17",null,59,400]
[null,null,null,"S27",null,97,400]
[null,null,null,"S37",null,130,400]
[null,null,null,"S47",null,178,400]
[null,null,null,"S57",null,237,400]
[]
[null,null,null,"S18",null,66,400]
[null,null,null,"S28",null,107,400]
[null,null,null,"S38",null,147,400]
[null,null,null,"S48",null,206,400]
[null,null,null,"S58",null,272,400]
[]
[null,null,null,"S19",null,73,400]
[null,null,null,"S29",null,114,400]
[null,null,null,"S39",null,199,400]
[null,null,null,"S49",null,234,400]
[null,null,null,"S59",null,308,400]
[]
["Wandgehäuse Baureihe SE, 225mm tief, SK I","ABN","IP54","SE13",null,33,400]
[null,null,null,"SE23",null,52,400]
[null,null,null,"SE33",null,90,400]
[null,null,null,"SE43",null,94,400]
[null,null,null,"SE53",null,99,400]
[]
[null,null,null,"SE14",null,38,400]
[null,null,null,"SE24",null,61,400]
[null,null,null,"SE34",null,97,400]
[null,null,null,"SE44",null,112,400]
[null,null,null,"SE54",null,128,400]
[]
[null,null,null,"SE15",null,45,400]
[null,null,null,"SE25",null,73,400]
[null,null,null,"SE35",null,107,400]
[null,null,null,"SE45",null,133,400]
[null,null,null,"SE55",null,161,400]
[]
[null,null,null,"SE16",null,52,400]
[null,null,null,"SE26",null,85,400]
[null,null,null,"SE36",null,116,400]
[null,null,null,"SE46",null,154,400]
[null,null,null,"SE56",null,195,400]
[]
[null,null,null,"SE17",null,63,400]
[null,null,null,"SE27",null,97,400]
[null,null,null,"SE37",null,130,400]
[null,null,null,"SE47",null,168,400]
[null,null,null,"SE57",null,218,400]
[]
[null,null,null,"SE18",null,73,400]
[null,null,null,"SE28",null,107,400]
[null,null,null,"SE38",null,147,400]
[null,null,null,"SE48",null,206,400]
[null,null,null,"SE58",null,272,400]
[]
[null,null,null,"SE19",null,73,400]
[null,null,null,"SE29",null,114,400]
[null,null,null,"SE39",null,199,400]
[null,null,null,"SE49",null,234,400]
[null,null,null,"SE59",null,308,400]
[]
["Wandgehäuse Baureihe SP, 225mm tief, SK II","ABN","IP54","SP13",null,31,400]
[null,null,null,"SP23",null,49,400]
[null,null,null,"SP33",null,87,400]
[null,null,null,"SP43",null,91,400]
[null,null,null,"SP53",null,96,400]
[]
[null,null,null,"SP14",null,38,400]
[null,null,null,"SP24",null,61,400]
[null,null,null,"SP34",null,97,400]
[null,null,null,"SP44",null,112,400]
[null,null,null,"SP54",null,132,400]
[]
[null,null,null,"SP15",null,45,400]
[null,null,null,"SP25",null,73,400]
[null,null,null,"SP35",null,107,400]
[null,null,null,"SP45",null,133,400]
[null,null,null,"SP55",null,168,400]
[]
[null,null,null,"SP16",null,52,400]
[null,null,null,"SP26",null,85,400]
[null,null,null,"SP36",null,116,400]
[null,null,null,"SP46",null,154,400]
[null,null,null,"SP56",null,204,400]
[]
[null,null,null,"SP17",null,59,400]
[null,null,null,"SP27",null,97,400]
[null,null,null,"SP37",null,130,400]
[null,null,null,"SP47",null,178,400]
[null,null,null,"SP57",null,237,400]
[]
[null,null,null,"SP18",null,66,400]
[null,null,null,"SP28",null,107,400]
[null,null,null,"SP38",null,147,400]
[null,null,null,"SP48",null,206,400]
[null,null,null,"SP58",null,272,400]
[]
[null,null,null,"SP19",null,73,400]
[null,null,null,"SP29",null,114,400]
[null,null,null,"SP39",null,199,400]
[null,null,null,"SP49",null,234,400]
[null,null,null,"SP59",null,308,400]
[]
["Wandgehäuse Baureihe NF..E, 280mm tief, SK I","ABN","IP54","NF14E",null,85,630]
[null,null,null,"NF24E",null,160,630]
[null,null,null,"NF34E",null,240,630]
[null,null,null,"NF44E",null,288,630]
[null,null,null,"NF54E",null,300,630]
[]
[null,null,null,"NF26E",null,240,630]
[null,null,null,"NF36E",null,360,630]
[null,null,null,"NF46E",null,432,630]
[null,null,null,"NF56E",null,450,630]
[]
[null,null,null,"NF27E",null,280,630]
[null,null,null,"NF37E",null,420,630]
[null,null,null,"NF47E",null,504,630]
[null,null,null,"NF57E",null,525,630]
[]
[null,null,null,"NF28E",null,320,630]
[null,null,null,"NF38E",null,480,630]
[null,null,null,"NF48E",null,576,630]
[null,null,null,"NF58E",null,600,630]
[]
[null,null,null,"NF29E",null,360,630]
[null,null,null,"NF39E",null,540,630]
[null,null,null,"NF49E",null,648,630]
[null,null,null,"NF59E",null,675,630]
[]
["Wandgehäuse Baureihe NF..P, 280mm tief, SK II","ABN","IP54","NF14P",null,85,630]
[null,null,null,"NF24P",null,160,630]
[null,null,null,"NF34P",null,240,630]
[null,null,null,"NF44P",null,288,630]
[null,null,null,"NF54P",null,300,630]
[]
[null,null,null,"NF26P",null,240,630]
[null,null,null,"NF36P",null,360,630]
[null,null,null,"NF46P",null,432,630]
[null,null,null,"NF56P",null,450,630]
[]
[null,null,null,"NF27P",null,280,630]
[null,null,null,"NF37P",null,420,630]
[null,null,null,"NF47P",null,504,630]
[null,null,null,"NF57P",null,525,630]
[]
[null,null,null,"NF28P",null,320,630]
[null,null,null,"NF38P",null,480,630]
[null,null,null,"NF48P",null,576,630]
[null,null,null,"NF58P",null,600,630]
[]
[null,null,null,"NF29P",null,360,630]
[null,null,null,"NF39P",null,540,630]
[null,null,null,"NF49P",null,648,630]
[null,null,null,"NF59P",null,675,630]
[]
["Standgehäuse Baureihe SV..., 210mm tief, SK I","ABN","IP43","SV112",null,100,630]
[null,null,null,"SV212",null,175,630]
[null,null,null,"SV312",null,250,630]
[null,null,null,"SV412",null,325,630]
[null,null,null,"SV512",null,410,630]
[]
["Standgehäuse Baureihe SF..., 210mm tief, SK II","ABN","IP43","SF112",null,100,630]
[null,null,null,"SF212",null,175,630]
[null,null,null,"SF312",null,250,630]
[null,null,null,"SF412",null,325,630]
[null,null,null,"SF512",null,410,630]
[]
["Standgehäuse Baureihe SE..., 225mm tief, SK I","ABN","IP54","SE112",null,110,630]
[null,null,null,"SE212",null,190,630]
[null,null,null,"SE312",null,260,630]
[null,null,null,"SE412",null,340,630]
[null,null,null,"SE512",null,420,630]
[]
["Standgehäuse Baureihe SP..., 225mm tief, SK II","ABN","IP54","SP112",null,110,630]
[null,null,null,"SP212",null,190,630]
[null,null,null,"SP312",null,260,630]
[null,null,null,"SP412",null,340,630]
[null,null,null,"SP512",null,420,630]
[]
["Standgehäuse Baureihe NF…E, 280mm tief, SK I","ABN","IP55","NF112E",null,264,800]
[null,null,null,"NF212E",null,528,800]
[null,null,null,"NF312E",null,792,800]
[null,null,null,"NF412E",null,960,800]
[null,null,null,"NF512E",null,1020,800]
[]
["Standgehäuse Baureihe NF…P, 280mm tief, SK II","ABN","IP55","NF112P",null,264,800]
[null,null,null,"NF212P",null,528,800]
[null,null,null,"NF312P",null,792,800]
[null,null,null,"NF412E",null,960,800]
[null,null,null,"NF512P",null,1020,800]
[]
["Standgehäuse Baureihe NT…E, 340mm tief, SK I","ABN","IP55","NT112E",null,300,1200]
["seitlich geschlossen",null,null,"NT212E",null,600,1200]
[null,null,null,"NT312E",null,900,1200]
[null,null,null,"NT412E",null,1056,1200]
[null,null,null,"NT512E",null,1200,1200]
[]
["Standgehäuse Baureihe NT…P, 340mm tief, SK II","ABN","IP55","NT112P",null,300,1200]
["seitlich geschlossen",null,null,"NT212P",null,600,1200]
[null,null,null,"NT312P",null,900,1200]
[null,null,null,"NT412E",null,1056,1200]
[null,null,null,"NT512P",null,1200,1200]
[]
["Standgehäuse Baureihe NT…EB, 340mm tief, SK I","ABN","IP55","NT112EB",null,300,1200]
["seitlich offen",null,null,"NT212EB",null,600,1200]
[null,null,null,"NT312EB",null,900,1200]
[null,null,null,"NT412EB",null,1056,1200]
[null,null,null,"NT512EB",null,1200,1200]
[]
["Standgehäuse Baureihe NT…PB, 340mm tief, SK II","ABN","IP55","NT112PB",null,300,1200]
["seitlich offen",null,null,"NT212PB",null,600,1200]
[null,null,null,"NT312PB",null,900,1200]
[null,null,null,"NT412PB",null,1056,1200]
[null,null,null,"NT512PB",null,1200,1200]
[]
["Standgehäuse Baureihe NS…EB, 500mm tief, SK I","ABN","IP55","NS112EB",null,350,1600]
["seitlich offen",null,null,"NS212EB",null,693,1600]
[null,null,null,"NS312EB",null,1010,1600]
[null,null,null,"NS412EB",null,1205,1600]
[null,null,null,"NS512EB",null,1410,1600]
[]
["Standgehäuse Baureihe NS…PB, 500mm tief, SK II","ABN","IP54","NS112PB",null,350,1600]
["seitlich offen",null,null,"NS212PB",null,693,1600]
[null,null,null,"NS312PB",null,1010,1600]
[null,null,null,"NS412PB",null,1205,1600]
[null,null,null,"NS512PB",null,1410,1600]
[]
["Reihenschaltschrank Bauhöhe 12, 600mm tief, SK I","ABN","IP54","RE212W6",null,367,1600]
["seitlich offen",null,null,"RE312W6",null,712,1600]
[null,null,null,"RE412W6",null,1025,1600]
[null,null,null,"RE512W6",null,1224,1600]
[]
["Reihenschaltschrank Bauhöhe 14, 600mm tief, SK I","ABN","IP54","RE214W6",null,367,1600]
["seitlich offen",null,null,"RE314W6",null,712,1600]
[null,null,null,"RE414W6",null,1025,1600]
[null,null,null,"RE514W6",null,1224,1600]

{"sheet":"Pv_Einbaugeräte","index":3,"n_rows":184,"n_cols":8,"rows_kept":184,"cut":false,"hidden":false,"merged":[]}
["Tabelle Einbaugeräte:"]
[]
["Geräteart","Hersteller","Typ","Bemerkung","Bemessungsstrom des Gerätes\nIn / A","Verlustleistung des Gerätes pro Pol bei Bemessungsstrom\nin Watt","maximale Verlustleistung der Sicherung bei Bemessungsstrom","Verlustleistung pro Pol bei Bemessungsstrom\nPV / W\n\nSumme Spalte F + G"]
["NH-Sicherung NH 00C","ABN",null,null,125,9,null,9]
["NH-Sicherung NH 00","ABN",null,null,160,12,null,12]
["NH-Sicherung NH 1","ABN",null,null,250,23,null,23]
["NH-Sicherung NH 2","ABN",null,null,400,34,null,34]
["NH-Sicherung NH 3","ABN",null,null,630,48,null,48]
["Schraubsicherungssystem D 01/E14, einschl. Sicherung","ABN",null,null,16,2.2000000000000002,null,5]
["Schraubsicherungssystem D 02/E18, einschl. Sicherung","ABN",null,null,63,5,null,5]
["Schraubsicherungssystem D II/E27, einschl. Sicherung","ABN",null,null,25,4,null,4]
["Schraubsicherungssystem D III/E33, einschl. Sicherung","ABN",null,null,63,7,null,7]
["Sicherungslasttrennschalter NH 00C, einschl. Sicherung","ABN",null,null,125,3.5,6,{"$f":"F13+G13","v":9.5}]
["Sicherungslasttrennschalter NH 00, einschl. Sicherung","ABN",null,null,160,5,12,17]
["Sicherungslasttrennschalter NH 1, einschl. Sicherung","ABN",null,null,250,8.6,18,26.6]
["Sicherungslasttrennschalter NH 2, einschl. Sicherung","ABN",null,null,400,15,28,43]
["Sicherungslasttrennschalter NH 3, einschl. Sicherung","ABN",null,null,630,20,40,60]
["Sicherungsunterteil NH 00, einschl. Sicherung","ABN",null,null,160,4.5999999999999996,12,16.600000000000001]
["Sicherungsunterteil NH 1, einschl. Sicherung","ABN",null,null,250,7.3,23,30.3]
["Sicherungsunterteil NH 2, einschl. Sicherung","ABN",null,null,400,18.600000000000001,34,52.6]
["Lasttrennschalter (63 A)","ABN",null,null,63,2,null,2]
["Lasttrennschalter (100 A)","ABN",null,null,100,3,null,3]
["Lasttrennschalter (125 A)","ABN",null,null,125,1.8,null,1.8]
["Lasttrennschalter (160 A)","ABN",null,null,160,3,null,3]
["Lasttrennschalter (250 A)","ABN",null,null,250,5.8,null,5.8]
["Lasttrennschalter (400 A)","ABN",null,null,400,10.8,null,10.8]
["Lasttrennschalter (630 A)","ABN",null,null,630,30.9,null,30.9]
["Lasttrennumschalter (160 A)","ABN",null,null,160,3,null,3]
["Lasttrennumschalter (250 A)","ABN",null,null,250,5.8,null,5.8]
["Leistungsschalter (160 A)","ABN",null,null,160,13.95,null,13.95]
["Leistungsschalter (250 A)","ABN",null,null,250,18.75,null,18.75]
["Leistungsschalter (400 A)","ABN",null,null,400,19.2,null,19.2]
["Leistungsschalter (630 A)","ABN",null,null,630,39.69,null,39.69]
[]
["Ausschalter 3-polig 63A ","ABN",null,null,63,7.5]
["Stromstoßschalter 16A 1S/1Ö","ABN",null,null,16,1.1000000000000001]
["Treppenlichtautomat 230V 16A","ABN",null,null,16,1]
["Installationsschütz 16A 1-polig","ABN",null,null,16,1.8]
["Installationsschütz 63A 3-polig","ABN",null,null,63,18]
["Schaltuhr digital 4K 16A","ABN",null,null,16,6.6]
["Zeitrelais","ABN",null,null,16,2.5]
["Überspannungsableiter 5-polig","ABN",null,null,250,0]
["Klingeltrafo 230V 2,5A","ABN",null,null,2.5,9]
[]
["SH-Schalter 35A","ABN",null,null,35,5.5]
["SH-Schalter 50A","ABN",null,null,50,6]
["SH-Schalter 63A","ABN",null,null,63,7]
[]
["Sammelschiene je 1m","ABN","12x5","Delta T20",250,20.05]
["Sammelschiene je 1m","ABN","12x5","Delta T25",250,20.41]
["Sammelschiene je 1m","ABN","12x5","Delta T30",250,20.77]
[]
["Sammelschiene je 1m","ABN","2x12x5","Delta T20",250,13.13]
["Sammelschiene je 1m","ABN","2x12x5","Delta T25",250,13.61]
["Sammelschiene je 1m","ABN","2x12x5","Delta T30",250,13.85]
[]
["Sammelschiene je 1m","ABN","30x10","Delta T20",400,10.27]
["Sammelschiene je 1m","ABN","30x10","Delta T25",400,10.46]
["Sammelschiene je 1m","ABN","30x10","Delta T30",400,10.63]
[]
["Sammelschiene je 1m","ABN","40x10","Delta T20",250,19.100000000000001]
["Sammelschiene je 1m","ABN","40x10","Delta T25",400,19.43]
["Sammelschiene je 1m","ABN","40x10","Delta T30",630,19.8]
[]
["FI/LS","Doepke","FI/LS"]
["RCBO 1+N, B-Charakteristik","Doepke",null,null,6,1.7]
[null,"Doepke",null,null,10,2.2999999999999998]
[null,"Doepke",null,null,13,3.4]
[null,"Doepke",null,null,16,3.6]
[null,"Doepke",null,null,20,5.4]
[null,"Doepke",null,null,25,5]
[null,"Doepke",null,null,32,6.1]
[null,"Doepke",null,null,40,8.1999999999999993]
[]
["FI/LS","Doepke","FI/LS"]
["RCBO 1+N, C-Charakteristik","Doepke",null,null,6,1.7]
[null,"Doepke",null,null,10,2.2999999999999998]
[null,"Doepke",null,null,13,3.4]
[null,"Doepke",null,null,16,3.6]
[null,"Doepke",null,null,20,5.4]
[null,"Doepke",null,null,25,5]
[null,"Doepke",null,null,32,6.1]
[null,"Doepke",null,null,40,8.1999999999999993]
[]
["FI/LS","Doepke","FI/LS",null,6,2.1]
["RCBO 1+N Typ B, 3+N Typ A/B, B-Charakteristik","Doepke",null,null,10,2.2000000000000002]
[null,"Doepke",null,null,13,2.8]
[null,"Doepke",null,null,16,2.2999999999999998]
[null,"Doepke",null,null,20,3.1]
[null,"Doepke",null,null,25,4.3]
[null,"Doepke",null,null,32,5.0999999999999996]
[null,"Doepke",null,null,40,6.5]
[]
["FI - DFS 2/4 30 mA-1000 mA","Doepke","FI"]
["Standard","Doepke","DFS2",null,16,0.18]
["Standard","Doepke","DFS2",null,25,0.45]
["Standard","Doepke","DFS2",null,40,1.1000000000000001]
["Standard","Doepke","DFS2",null,63,2.8]
["Standard","Doepke","DFS2",null,80,4]
["Standard","Doepke","DFS2",null,100,6]
["Standard","Doepke","DFS2",null,125,10]
[]
["allstromsensitiv","Doepke","DFS4",null,16,0.2]
["allstromsensitiv","Doepke","DFS4",null,25,0.5]
["allstromsensitiv","Doepke","DFS4",null,40,1.3]
["allstromsensitiv","Doepke","DFS4",null,63,3.1]
["allstromsensitiv","Doepke","DFS4",null,80,5]
["allstromsensitiv","Doepke","DFS4",null,100,7.5]
["allstromsensitiv","Doepke","DFS4",null,125,11.2]
[]
["FI - DFS 2/4 10 mA","Doepke"]
["Standard","Doepke","DFS2",null,16,1.2]
["Standard","Doepke","DFS2",null,25,3]
["Standard","Doepke","DFS2",null,40,7.5]
[]
["allstromsensitiv","Doepke","DFS4",null,16,1.4]
["allstromsensitiv","Doepke","DFS4",null,25,3.2]
["allstromsensitiv","Doepke","DFS4",null,40,"–"]
[]
["Leitungsschutzschalter","Doepke"]
["DLS 6 B/C/D/K-Charakteristik"]
["B-Charakteristik","Doepke","LS",null,1,"-"]
["B-Charakteristik","Doepke",null,null,2,2]
["B-Charakteristik","Doepke",null,null,3,1.9]
["B-Charakteristik","Doepke",null,null,4,2.1]
["B-Charakteristik","Doepke",null,null,6,1.9]
["B-Charakteristik","Doepke",null,null,8,"-"]
["B-Charakteristik","Doepke",null,null,10,1.3]
["B-Charakteristik","Doepke",null,null,13,1.9]
["B-Charakteristik","Doepke",null,null,16,2.1]
["B-Charakteristik","Doepke",null,null,20,2.8]
["B-Charakteristik","Doepke",null,null,25,3.1]
["B-Charakteristik","Doepke",null,null,32,3.7]
["B-Charakteristik","Doepke",null,null,40,3.5]
["B-Charakteristik","Doepke",null,null,50,4.9000000000000004]
[null,"Doepke",null,null,63,7]
[]
["C-Charakteristik","Doepke","LS",null,1,1.8]
["C-Charakteristik","Doepke",null,null,2,1.7]
["C-Charakteristik","Doepke",null,null,3,1.8]
["C-Charakteristik","Doepke",null,null,4,1.7]
["C-Charakteristik","Doepke",null,null,6,1.8]
["C-Charakteristik","Doepke",null,null,8,1.5]
["C-Charakteristik","Doepke",null,null,10,1.3]
["C-Charakteristik","Doepke",null,null,13,1.4]
["C-Charakteristik","Doepke",null,null,16,2.1]
["C-Charakteristik","Doepke",null,null,20,3]
["C-Charakteristik","Doepke",null,null,25,3.1]
["C-Charakteristik","Doepke",null,null,32,3.7]
["C-Charakteristik","Doepke",null,null,40,3.5]
["C-Charakteristik","Doepke",null,null,50,4.8]
["C-Charakteristik","Doepke",null,null,63,7]
[]
["D-Charakteristik","Doepke",null,null,1,"-"]
["D-Charakteristik","Doepke",null,null,2,"-"]
["D-Charakteristik","Doepke",null,null,3,"-"]
["D-Charakteristik","Doepke",null,null,4,1.7]
["D-Charakteristik","Doepke",null,null,6,1.7]
["D-Charakteristik","Doepke",null,null,8,1.3]
["D-Charakteristik","Doepke",null,null,10,1.3]
["D-Charakteristik","Doepke",null,null,13,1.4]
["D-Charakteristik","Doepke",null,null,16,2.1]
["D-Charakteristik","Doepke",null,null,20,2.5]
["D-Charakteristik","Doepke",null,null,25,2.5]
["D-Charakteristik","Doepke",null,null,32,2.8]
["D-Charakteristik","Doepke",null,null,40,3.5]
["D-Charakteristik","Doepke",null,null,50,4.5999999999999996]
["D-Charakteristik","Doepke",null,null,63,6.8]
[]
["K-Charakteristik","Doepke",null,null,1,"-"]
["K-Charakteristik","Doepke",null,null,2,1.7]
["K-Charakteristik","Doepke",null,null,3,"-"]
["K-Charakteristik","Doepke",null,null,4,1.7]
["K-Charakteristik","Doepke",null,null,6,1.8]
["K-Charakteristik","Doepke",null,null,8,2.8]
["K-Charakteristik","Doepke",null,null,10,3.1]
["K-Charakteristik","Doepke",null,null,13,1.5]
["K-Charakteristik","Doepke",null,null,16,1.9]
["K-Charakteristik","Doepke",null,null,20,2.5]
["K-Charakteristik","Doepke",null,null,25,2.9]
["K-Charakteristik","Doepke",null,null,32,2.9]
["K-Charakteristik","Doepke",null,null,40,3.5]
["K-Charakteristik","Doepke",null,null,50,4.9000000000000004]
["K-Charakteristik","Doepke",null,null,63,7]

{"sheet":"Legende","index":4,"n_rows":30,"n_cols":2,"rows_kept":30,"cut":false,"hidden":false,"merged":[]}
[]
["Legende:"]
[null,"Die Derating-Kurve beschreibt die maximale zulässige Verlustleistung eines elektrischen oder elektronischen Bauteiles in Abhängigkeit von seiner Umgebungstemperatur."]
[null,"In der Praxis wird die Leistungsreduktion und damit die Berücksichtigung der Derating-Kurve oft nicht vom Bauteil oder Gerät selbst vorgenommen,\nsondern ist Aufgabe des Benutzers, sofern sie nicht bereits bei der Entwicklung des Gesamtproduktes berücksichtigt wurde. "]
[]
[null,"RDF = Bemessungsbelastungsfaktor\nUnter der Voraussetzung, dass die Belastung der Einspeisung deren Bemessungsstrom nicht überschreitet, ist der Belastungsfaktor der Anteil der jeweiligen\nBemessungsströme, den jede Kombination von abgehenden Stromkreisen gleichzeitig und dauerhaft führen kann, ohne die Schaltgerätekombination zu überlasten."]
[]
[]
[]
[null,"Festlegung: Betriebsbedingungen"]
[]
[]
[]
[]
[]
[]
[]
[]
[]
[]
[]
[]
[]
[]
[]
[]
[]
[]
[]
[null,"Sammelschienen Verluste für 3-poliges System"]